{"text_format":"1","workbook":"xlsx","n_sheets":2,"sheets":["Benutzungshinweise","Rezeptur"],"not_rendered":{"charts":0,"images":1,"macros":0,"external_links":0,"defined_names":3,"comments":1,"pivot_tables":0},"unopened":[],"bounds":{"document_bytes":16777216,"sheet_cells":100000,"rows_first":2000,"rows_last":500,"rows_between":2000,"halvings":0,"cell_chars":16384,"cell_head_chars":4096},"cells_cut":0,"cells_raw":0,"read":"whole","date_system":"1900"}

{"sheet":"Benutzungshinweise","index":0,"n_rows":19,"n_cols":2,"rows_kept":19,"cut":false,"hidden":false,"merged":[]}
[]
[]
[]
[null,"Benutzungshinweise"]
[]
[null,"Diese Excel-Tabelle dient dazu, flexibel Rezepturen zu erfassen."]
[null,"Damit es Ihnen möglich ist die vorgegeben Zusammenstellungen auch zu verändern, erläutern wie hier, was dabei zu beachten ist:"]
[null,"Filterung: Die Tabelle zeigt nur die Zeilen an, die auch ausgefüllt sind. Dafür ist der Filter zuständig, den Sie in Zelle \"J10\" finden. Durch Anklicken der Schaltfläche mit dem Dreieck öffnet sich eine Liste, wo Sie auswählen können, welche Zeilen angezeigt werden sollen. Wählen Sie hier \"X\", werden nur Zeilen mit Inhalt angezeigt, wählen Sie alle, werden alle Zeilen angezeigt und sie können dann auch die notwendigen Veränderungen vornehmen.\nSetzen Sie bitte den Filter immer auf \"X\" bevor Sie das Blatt ausdrucken, da sonst alle leeren Zeilen mit ausgedruckt werden."]
[null,"Eintragen von Daten: Damit die Tabelle auch die Mengen berechnen kann und die entsprechende Formatierung stimmt, werden alle Daten in den orangenen Feldern auf der rechten Seite eingetragen. Die Werte übernehmen sich dann automatisch auf den Ausdruckbereich.\nSollten Sie ausversehen in der Rezeptur einen Zellinhalt überschrieben haben, kopieren Sie einfach die Zeile von obendrüber oder untendrunter dort hin."]
[null,"Unterrezepturen: Um auch die Rohstoffe, die in Vorstufen enthalten sind, anzeigen zu können, gibt es eine Vorprodukt-Steuerung. Dazu geben Sie in Spalte \"Q\" bei den entsprechenden Rohstoffen ein \"o\" bzw. ein \"u\" ein. Bei einem Quellstück bekommt die Zeile mit der Bezeichnung \"Quellstück\" ein \"o\", die Zeilen mit den darin enthaltenen Rohstoffen ein \"u\".. Dies bewirkt, dass die \"Unterrohstoffe\" orange und eingerückt angezeigt werden und die Gesamtmengenberechnung stimmt. Weitere Unterebenen erzielen Sie mit \"o2\" bzw. \"u2\" für die zweite Unterebene, bzw. mit \"o3\" bzw. \"u3\" für die dritte Unterebene. Aus der Berechnung der Gesamtmenge werden alle Felder mit einem enthaltenen \"o\" (\"o\", \"o2\", \"o3\") herausgenommen, da die Rohstoffe der Unterebene (\"u\", \"u2\", \"u3\") gerechnet werden."]
[null,"Erklärungszeilen: Die Erklärungszeilen dienen notwendigen Erläuterungen im Rezepturablauf. Diese können Sie für die entsprechenden Stellen kopieren. Bitte beachten Sie, dass die texte dafür direkt auf dem grauen Hintergrund eingetragen werden"]
[null,"Zeilen verschieben: Bitte verschieben Sie immer nur ganze Zeilen durch Anklicken des \"Zeilenkopfes\" (da wo die Zeilennummer drauf steht) und dann durch verschieben der Zeile mit gedrückter Großschreibtaste (Shift)."]
[null,"Grundmenge und Multiplikator: Geben Sie bitte die Rezepturen immer bezogen auf Grundmengen ein (Teige auf 10kg Getreide und Massen auf Standard). Dieser Wert steht dann immer mit auf dem Rezepturausdruck, damit man eine Basis hat.\nMöchten Sie eine Multiplikationsbasis setzen (z.B. 1150 g bei einer Brotsorte), geben Sie diesen Wert in der Zelle \"L5\" ein. Nun können Sie durch ändern der Werte in den Zellen  \"E10\", \"F10\" und \"G10\" die gewünschten Mültiplikatoren angeben, mit der der Grundwert vervielfältigt werden soll."]
[null,"Rundung: Damit nicht extrem krumme Zahlen zum Verwiegen angezeigt werden, können Sie auf 2 Nachkommastellen runden lassen (die dritte wird dann als \"0\" angezeigt\". Dazu geben Sie im Feld \"Rundung ab\" (\"O3\") einen Wert ein, ab welcher basismenge zu runden ist. Bei Rezepturen auf 10kg Mehl könnte das \"1kg\" sein, da es nicht viel Ausmacht, ob man von diesem Mehl dann 3g mehr oder 5 g weniger verwiegt. In der Basis ist der Rundungsfaktor auf 10kg eingestellt, dmait eigentlich nichts gerundet wird."]
[null,"Soweit zur Nutzung der Tabelle. Mit ein bisschen Ausprobieren, werden Sie bestimmt die Vorzüge dieser Art der Rezepturerfassung schätzen lernen."]
[]
[null,"Viel Erfolg wünscht"]
[]
[null,"Ihr Clean-Ingredients-Team"]

{"sheet":"Rezeptur","index":1,"n_rows":120,"n_cols":39,"rows_kept":120,"cut":false,"hidden":false,"merged":[[2,1,4,1],[4,2,4,6],[69,2,69,6],[66,2,66,6],[61,2,61,6],[56,1,56,6],[90,2,90,6],[91,2,91,6],[74,2,74,6],[75,2,75,6],[2,2,2,6],[6,18,9,18],[59,2,59,6],[60,2,60,6],[64,2,64,6],[53,1,53,6],[6,16,9,16],[6,11,9,11],[6,14,9,14],[6,12,9,12],[43,1,43,6],[119,1,119,6],[100,2,100,6],[101,2,101,6],[113,2,113,6],[114,2,114,6],[115,2,115,6],[116,2,116,6],[104,2,104,6],[105,2,105,6],[107,2,107,6],[110,2,110,6],[106,2,106,6],[97,2,97,6],[83,2,83,6],[70,2,70,6],[94,2,94,6],[2,11,2,12],[65,2,65,6],[73,2,73,6],[96,2,96,6],[95,2,95,6],[78,2,78,6],[85,2,85,6],[86,2,86,6],[84,2,84,6],[79,2,79,6],[80,2,80,6],[89,2,89,6]]}
[]
[]
[null,null,null,null,null,null,null,null,null,null,null,"Nur ganze Zeilen verschieben, dabei\nGroßschreibtaste (Shift) drücken",null,null,10,null,"Rundung\nab"]
[]
[null,null,null,null,null,null,null,null,null,null,null,null,"Multiplikationsbasis",null,null,null,"v1.0"]
[]
[null,null,null,null,null,null,null,null,null,null,null,"Rohstoffbezeichnung","Menge",null,"Einheit",null,"Vorprodukt-\nSteuerung",null,"Anmerkung"]
[]
[]
[null,{"$f":"L5","v":0},"Basis",null,1,2,3,null,null,"Filter"]
[null,null,null,null,null,null,null,null,null,"x",null,"v2"]
[null,{"$f":"IF(L12=\"\",\"\",IF(OR(Q12=\"U\",Q12=\"O2\"),\"     \"&L12,IF(OR(Q12=\"U2\",Q12=\"O3\"),\"         \"&L12,IF(Q12=\"U3\",\"            \"&L12,L12))))","v":""},{"$f":"IF(AND(L12<>\"\",M12<>\"\"),M12,\"\")","v":""},{"$f":"IF(AND(O12<>\"\",M12<>\"\"),$O12,\"\")","v":""},{"$f":"IF(AND($L$5>0,$O$46>0),\"-----\",IF($C12<>\"\",IF($M12<$O$3,$C12*E$47,ROUND($C12*E$47,2)),\"\"))","v":""},"","",null,null,{"$f":"IF(L12<>\"\",\"X\",\"\")","v":""},"I",null,null,null,null,null,null,null,null,null,null,null,"kg",{"$f":"IF(AND(Q12<>\"o\",Q12<>\"o2\",Q12<>\"o3\"),M12,0)","v":0}]
[null,"","","","","","",null,null,{"$f":"IF(L13<>\"\",\"X\",\"\")","v":""},"I",null,null,null,null,null,null,null,null,null,null,null,"kg",0]
[null,"","","","","","",null,null,"","I",null,null,null,null,null,null,null,null,null,null,null,"kg",0]
[null,"","","","","","",null,null,"","I",null,null,null,null,null,null,null,null,null,null,null,"kg",0]
[null,"","","","","","",null,null,"","I",null,null,null,null,null,null,null,null,null,null,null,"kg",0]
[null,"","","","","","",null,null,"","I",null,null,null,null,null,null,null,null,null,null,null,"kg",0]
[null,"","","","","","",null,null,"","I",null,null,null,null,null,null,null,null,null,null,null,"kg",0]
[null,"","","","","","",null,null,"","I",null,null,null,null,null,null,null,null,null,null,null,"kg",0]
[null,"","","","","","",null,null,{"$f":"IF(L20<>\"\",\"X\",\"\")","v":""},"I",null,null,null,null,null,null,null,null,null,null,null,"kg",0]
[null,"",{"$f":"IF(AND(L21<>\"\",M21<>\"\"),M21,\"\")","v":""},{"$f":"IF(AND(O21<>\"\",M21<>\"\"),$O21,\"\")","v":""},"","","",null,null,"","I",null,null,null,null,null,null,null,null,null,null,null,"kg",0]
[null,"","","",{"$f":"IF(AND($L$5>0,$O$46>0),\"-----\",IF($C22<>\"\",IF($M22<$O$3,$C22*E$47,ROUND($C22*E$47,2)),\"\"))","v":""},{"$f":"IF(AND($L$5>0,$O$46>0),\"-----\",IF($C22<>\"\",IF($M22<$O$3,$C22*F$47,ROUND($C22*F$47,2)),\"\"))","v":""},{"$f":"IF(AND($L$5>0,$O$46>0),\"-----\",IF($C22<>\"\",IF($M22<$O$3,$C22*G$47,ROUND($C22*G$47,2)),\"\"))","v":""},null,null,"","I",null,null,null,null,null,null,null,null,null,null,null,"kg",0]
[null,"","","",{"$f":"IF(AND($L$5>0,$O$46>0),\"-----\",IF($C23<>\"\",IF($M23<$O$3,$C23*E$47,ROUND($C23*E$47,2)),\"\"))","v":""},"","",null,null,"","I",null,null,null,null,null,null,null,null,null,null,null,"kg",0]
[null,"","","","","","",null,null,"","I",null,null,null,null,null,null,null,null,null,null,null,"kg",0]
[null,"","","","","","",null,null,"","I",null,null,null,null,null,null,null,null,null,null,null,"kg",0]
[null,"","","","","","",null,null,{"$f":"IF(L26<>\"\",\"X\",\"\")","v":""},"I",null,null,null,null,null,null,null,null,null,null,null,"kg",{"$f":"IF(AND(Q26<>\"o\",Q26<>\"o2\",Q26<>\"o3\"),M26,0)","v":0}]
[null,"","","","","","",null,null,{"$f":"IF(L27<>\"\",\"X\",\"\")","v":""},"I",null,null,null,null,null,null,null,null,null,null,null,"kg",{"$f":"IF(AND(Q27<>\"o\",Q27<>\"o2\",Q27<>\"o3\"),M27,0)","v":0}]
[null,"","","","","","",null,null,{"$f":"IF(L28<>\"\",\"X\",\"\")","v":""},"I",null,null,null,null,null,null,null,null,null,null,null,"kg",0]
[null,"","","","","","",null,null,{"$f":"IF(L29<>\"\",\"X\",\"\")","v":""},"I",null,null,null,null,null,null,null,null,null,null,null,"kg",0]
[null,"","","","","","",null,null,"","I",null,null,null,null,null,null,null,null,null,null,null,"kg",0]
[null,"",{"$f":"IF(AND(L31<>\"\",M31<>\"\"),M31,\"\")","v":""},{"$f":"IF(AND(O31<>\"\",M31<>\"\"),$O31,\"\")","v":""},"","","",null,null,"","I",null,null,null,null,null,null,null,null,null,null,null,"kg",0]
[null,"","","","","","",null,null,"","I",null,null,null,null,null,null,null,null,null,null,null,"kg",0]
[null,"","","","","","",null,null,"","I",null,null,null,null,null,null,null,null,null,null,null,"kg",0]
[null,"","","","","","",null,null,"","I",null,null,null,null,null,null,null,null,null,null,null,"kg",0]
[null,"","","","","","",null,null,"","I",null,null,null,null,null,null,null,null,null,null,null,"kg",0]
[null,"","","","","","",null,null,"","I",null,null,null,null,null,null,null,null,null,null,null,"kg",0]
[null,"","","","","","",null,null,"","I",null,null,null,null,null,null,null,null,null,null,null,"kg",0]
[null,"","","","","","",null,null,"","I",null,null,null,null,null,null,null,null,null,null,null,"kg",0]
[null,"","","","","","",null,null,"","I",null,null,null,null,null,null,null,null,null,null,null,"kg",0]
[null,"","","","","","",null,null,"","I",null,null,null,null,null,null,null,null,null,null,null,"kg",0]
[null,"","","","","","",null,null,"","I",null,null,null,null,null,null,null,null,null,null,null,"kg",0]
[null,"","","","","","",null,null,"","I",null,null,null,null,null,null,null,null,null,null,null,"kg",0]
[null,"","","","","","",null,null,"","I",null,null,null,null,null,null,null,null,null,null,null,"kg",0]
[null,null,null,null,null,null,null,null,null,{"$f":"IF(B44<>\"\",\"X\",\"\")","v":""},"T",null,null,null,null,null,null,null,null,null,{"$f":"IF(W44<>\"\",\"X\",\"\")","v":""},"","","","","","","","","","","","","","","","","",""]
[null,null,null,null,null,null,null,null,null,"X",null,"/v2"]
[null,{"$f":"NOW()","v":"2017-04-24T09:40:31.050"},{"$f":"IF(O46>0,\"\",X46)","v":0},null,{"$f":"IF($O$46>0,\"-----\",IF($L$5<>\"\",$L$5*E10,E10*$C$46))","v":0},{"$f":"IF($O$46>0,\"-----\",IF($L$5<>\"\",$L$5*F10,F10*$C$46))","v":0},{"$f":"IF($O$46>0,\"-----\",IF($L$5<>\"\",$L$5*G10,G10*$C$46))","v":0},null,null,"X",null,null,null,null,{"$f":"COUNTIF(O12:O43,\"=St.\")","v":0},null,null,null,null,null,null,null,null,{"$f":"SUM(X11:X45)","v":0}]
[null,null,null,null,{"$f":"IF($L$5<>\"\",E10*$L$5/$C$46,E10)","v":1},{"$f":"IF($L$5<>\"\",F10*$L$5/$C$46,F10)","v":2},{"$f":"IF($L$5<>\"\",G10*$L$5/$C$46,G10)","v":3}]
[]
[null,null,null,null,null,null,null,null,null,"X"]
[null,null,null,null,null,null,null,null,null,"X"]
[null,null,null,null,null,null,null,null,null,"X"]
[null,null,null,null,null,null,null,null,null,"X"]
[null,"Erläuterung",null,null,null,null,null,null,null,{"$f":"IF(J54=\"X\",\"X\",\"\")","v":""}]
[null,null,null,null,null,null,null,null,null,{"$f":"IF(B54<>\"\",\"X\",\"\")","v":""}]
[null,null,null,null,null,null,null,null,null,{"$f":"IF(J53=\"X\",\"X\",\"\")","v":""}]
[null,"Anmerkungen zu Rohstoffen",null,null,null,null,null,null,null,{"$f":"IF(J57=\"X\",\"X\",\"\")","v":""}]
[null,null,null,null,null,null,null,null,null,{"$f":"IF(B57<>\"\",\"X\",\"\")","v":""}]
[null,null,null,null,null,null,null,null,null,{"$f":"IF(J56=\"X\",\"X\",\"\")","v":""}]
[null,"Herstellung Quellstück",null,null,null,null,null,null,null,{"$f":"IF(COUNTIF(J60:J61,\"X\") > 0, \"X\",\"\")","v":""}]
[null,"Quellzeit (in Stunden)",null,null,null,null,null,null,null,{"$f":"IF(C60<>\"\",\"X\",\"\")","v":""}]
[null,"Temperatur",null,null,null,null,null,null,null,{"$f":"IF(C61<>\"\",\"X\",\"\")","v":""}]
[null,"Lagerung",null,null,null,null,null,null,null,{"$f":"IF(C62<>\"\",\"X\",\"\")","v":""}]
[null,null,null,null,null,null,null,null,null,{"$f":"IF(J59=\"X\",\"X\",\"\")","v":""}]
[null,"Herstellung Brühstück",null,null,null,null,null,null,null,{"$f":"IF(COUNTIF(J65:J66,\"X\") > 0, \"X\",\"\")","v":""}]
[null,"Quellzeit (in Stunden)",null,null,null,null,null,null,null,{"$f":"IF(C65<>\"\",\"X\",\"\")","v":""}]
[null,"Temperatur",null,null,null,null,null,null,null,{"$f":"IF(C66<>\"\",\"X\",\"\")","v":""}]
[null,"Lagerung",null,null,null,null,null,null,null,{"$f":"IF(C67<>\"\",\"X\",\"\")","v":""}]
[null,null,null,null,null,null,null,null,null,{"$f":"IF(J64=\"X\",\"X\",\"\")","v":""}]
[null,"Herstellung Kochstück",null,null,null,null,null,null,null,{"$f":"IF(COUNTIF(J70:J71,\"X\") > 0, \"X\",\"\")","v":""}]
[null,"Verfahren",null,null,null,null,null,null,null,{"$f":"IF(C70<>\"\",\"X\",\"\")","v":""}]
[null,"Lagerung",null,null,null,null,null,null,null,{"$f":"IF(C71<>\"\",\"X\",\"\")","v":""}]
[null,null,null,null,null,null,null,null,null,{"$f":"IF(J69=\"X\",\"X\",\"\")","v":""}]
[null,"Herstellung Sauerteig",null,null,null,null,null,null,null,{"$f":"IF(COUNTIF(J74:J76,\"X\") > 0, \"X\",\"\")","v":""}]
[null,"Reifezeit (in Stunden)",null,null,null,null,null,null,null,{"$f":"IF(C74<>\"\",\"X\",\"\")","v":""}]
[null,"Temperatur",null,null,null,null,null,null,null,{"$f":"IF(C75<>\"\",\"X\",\"\")","v":""}]
[null,"Lagerung",null,null,null,null,null,null,null,{"$f":"IF(C76<>\"\",\"X\",\"\")","v":""}]
[null,null,null,null,null,null,null,null,null,{"$f":"IF(J73=\"X\",\"X\",\"\")","v":""}]
[null,"Herstellung Vorteig",null,null,null,null,null,null,null,{"$f":"IF(COUNTIF(J79:J81,\"X\") > 0, \"X\",\"\")","v":""}]
[null,"Reifezeit (in Stunden)",null,null,null,null,null,null,null,{"$f":"IF(C79<>\"\",\"X\",\"\")","v":""}]
[null,"Temperatur",null,null,null,null,null,null,null,{"$f":"IF(C80<>\"\",\"X\",\"\")","v":""}]
[null,"Lagerung",null,null,null,null,null,null,null,{"$f":"IF(C81<>\"\",\"X\",\"\")","v":""}]
[null,null,null,null,null,null,null,null,null,{"$f":"IF(J78=\"X\",\"X\",\"\")","v":""}]
[null,"Herstellung Hauptteig",null,null,null,null,null,null,null,{"$f":"IF(COUNTIF(J84:J87,\"X\") > 0, \"X\",\"\")","v":""}]
[null,"Knetzeit langsam",null,null,null,null,null,null,null,{"$f":"IF(C84<>\"\",\"X\",\"\")","v":""}]
[null,"Knetzeit schnell",null,null,null,null,null,null,null,{"$f":"IF(C85<>\"\",\"X\",\"\")","v":""}]
[null,"Teigtemperatur",null,null,null,null,null,null,null,{"$f":"IF(C86<>\"\",\"X\",\"\")","v":""}]
[null,"Teigruhe",null,null,null,null,null,null,null,{"$f":"IF(C87<>\"\",\"X\",\"\")","v":""}]
[null,null,null,null,null,null,null,null,null,{"$f":"IF(J83=\"X\",\"X\",\"\")","v":""}]
[null,"Herstellung Brötchen",null,null,null,null,null,null,null,{"$f":"IF(COUNTIF(J90:J92,\"X\") > 0, \"X\",\"\")","v":""}]
[null,"Pressengewicht",null,null,null,null,null,null,null,{"$f":"IF(C90<>\"\",\"X\",\"\")","v":""}]
[null,"Stranggewicht",null,null,null,null,null,null,null,{"$f":"IF(C91<>\"\",\"X\",\"\")","v":""}]
[null,"Ballengare",null,null,null,null,null,null,null,{"$f":"IF(C92<>\"\",\"X\",\"\")","v":""}]
[null,null,null,null,null,null,null,null,null,{"$f":"IF(J89=\"X\",\"X\",\"\")","v":""}]
[null,"Aufarbeitung",null,null,null,null,null,null,null,{"$f":"IF(COUNTIF(J95:J98,\"X\") > 0, \"X\",\"\")","v":""}]
[null,"Teigeinlage 1",null,null,null,null,null,null,null,{"$f":"IF(C95<>\"\",\"X\",\"\")","v":""}]
[null,"weitere Angaben",null,null,null,null,null,null,null,{"$f":"IF(C96<>\"\",\"X\",\"\")","v":""}]
[null,"Teigeinlage 2",null,null,null,null,null,null,null,{"$f":"IF(C97<>\"\",\"X\",\"\")","v":""}]
[null,"weitere Angaben",null,null,null,null,null,null,null,{"$f":"IF(C98<>\"\",\"X\",\"\")","v":""}]
[null,null,null,null,null,null,null,null,null,{"$f":"IF(J94=\"X\",\"X\",\"\")","v":""}]
[null,"Dekor",null,null,null,null,null,null,null,{"$f":"IF(COUNTIF(J101:J102,\"X\") > 0, \"X\",\"\")","v":""}]
[null,"Menge",null,null,null,null,null,null,null,{"$f":"IF(C101<>\"\",\"X\",\"\")","v":""}]
[null,"Mischung",null,null,null,null,null,null,null,{"$f":"IF(C102<>\"\",\"X\",\"\")","v":""}]
[null,null,null,null,null,null,null,null,null,{"$f":"IF(J100=\"X\",\"X\",\"\")","v":""}]
[null,"Gare",null,null,null,null,null,null,null,{"$f":"IF(COUNTIF(J105:J108,\"X\") > 0, \"X\",\"\")","v":""}]
[null,"Temperatur",null,null,null,null,null,null,null,{"$f":"IF(C105<>\"\",\"X\",\"\")","v":""}]
[null,"Luftfeuchte",null,null,null,null,null,null,null,{"$f":"IF(C106<>\"\",\"X\",\"\")","v":""}]
[null,"Dauer",null,null,null,null,null,null,null,{"$f":"IF(C107<>\"\",\"X\",\"\")","v":""}]
[null,"weitere Angaben",null,null,null,null,null,null,null,{"$f":"IF(C108<>\"\",\"X\",\"\")","v":""}]
[null,null,null,null,null,null,null,null,null,{"$f":"IF(J104=\"X\",\"X\",\"\")","v":""}]
[null,"Vorbereitung zum Backen",null,null,null,null,null,null,null,{"$f":"IF(COUNTIF(J111,\"X\") > 0, \"X\",\"\")","v":""}]
[null,"Hinweise",null,null,null,null,null,null,null,{"$f":"IF(C111<>\"\",\"X\",\"\")","v":""}]
[null,null,null,null,null,null,null,null,null,{"$f":"IF(J110=\"X\",\"X\",\"\")","v":""}]
[null,"Backen",null,null,null,null,null,null,null,{"$f":"IF(COUNTIF(J114:J117,\"X\") > 0, \"X\",\"\")","v":""}]
[null,"Programm",null,null,null,null,null,null,null,{"$f":"IF(C114<>\"\",\"X\",\"\")","v":""}]
[null,"Ofentemperatur",null,null,null,null,null,null,null,{"$f":"IF(C115<>\"\",\"X\",\"\")","v":""}]
[null,"Backzeit",null,null,null,null,null,null,null,{"$f":"IF(C116<>\"\",\"X\",\"\")","v":""}]
[null,"weitere Angaben",null,null,null,null,null,null,null,{"$f":"IF(C117<>\"\",\"X\",\"\")","v":""}]
[null,null,null,null,null,null,null,null,null,{"$f":"IF(J113=\"X\",\"X\",\"\")","v":""}]
[null,"Variationen",null,null,null,null,null,null,null,{"$f":"IF(J120=\"X\",\"X\",\"\")","v":""}]
[null,null,null,null,null,null,null,null,null,{"$f":"IF(B120<>\"\",\"X\",\"\")","v":""}]